bitfinex/quotes_ETHUSD_20250930
["timestamp","ask_amount","ask_price","bid_price","bid_amount"]
[1759216322938,0.6951,4206.6,4206.2,3.558]
[1759216323837,0.2409,4206.6,4206.2,3.558]
[1759216326040,0.2409,4206.6,4206.0,0.002]
[1759216326041,2.37749934,4206.1,4206.0,0.002]
[1759216326212,8.14149934,4206.1,4206.0,0.002]
[1759216326521,8.83659934,4206.1,4206.0,0.002]
[1759216326944,9.44602649,4206.1,4206.0,0.002]
[1759216327122,10.11430415,4206.1,4206.0,0.002]
[1759216327923,10.62801241,4206.1,4206.0,0.002]
[1759216328244,10.11430415,4206.1,4206.0,0.002]
[1759216342846,10.62686467,4206.1,4206.0,0.002]
[1759216346072,2.3776124,4205.9,4205.8,1e-08]
[1759216346371,10.30229879,4205.9,4205.8,1e-08]
[1759216346574,10.81485931,4205.9,4205.8,1e-08]
[1759216346778,11.57533604,4205.9,4205.8,1e-08]
[1759216348055,8.81433604,4205.9,4205.8,1e-08]
[1759216348256,9.41164965,4205.9,4205.8,1e-08]
[1759216351145,8.74654965,4205.9,4205.8,1e-08]
[1759216351374,9.41164965,4205.9,4205.8,1e-08]
[1759216352779,5.98554965,4205.9,4205.8,1e-08]
[1759216352982,8.23298913,4205.9,4205.8,1e-08]
[1759216353352,9.41227247,4205.9,4205.8,1e-08]
[1759216354277,9.92539218,4205.9,4205.8,1e-08]
[1759216355568,9.92539218,4205.9,4205.8,0.38720001]
[1759216355569,0.09537673,4205.9,4205.8,0.38720001]
[1759216355769,0.09537673,4205.9,4205.8,1.17920001]
[1759216356077,0.38720001,4206.7,4205.9,0.792]
[1759216356259,0.38720001,4206.7,4206.0,0.3872]
[1759216356577,2.37704846,4206.9,4206.2,0.792]
[1759216356776,3.001,4207.0,4206.4,0.792]
[1759216356777,2.37711202,4206.8,4206.4,0.792]
[1759216356978,2.37711202,4206.8,4206.5,0.3872]
[1759216357481,2.37711202,4206.8,4206.6,0.3872]
[1759216357856,3.0,4206.9,4206.7,0.3872]
[1759216358055,3.0,4206.9,4206.8,0.3872]
[1759216358261,0.71600668,4207.0,4206.8,0.3872]
[1759216358459,3.001,4207.0,4206.9,0.3872]
[1759216358883,0.001,4207.0,4206.9,0.3872]
[1759216359473,2.37799072,4207.0,4206.9,0.3872]
[1759216359853,0.001,4207.0,4206.9,0.3872]
[1759216361486,0.001,4207.0,4206.9,1.1792]
[1759216362185,0.001,4207.0,4206.9,1.53483512]
[1759216363272,0.001,4207.0,4206.9,1.1792]
[1759216363983,0.001,4207.0,4206.9,15.6792]
[1759216364794,0.001,4207.0,4206.9,18.05624723]
[1759216365571,0.001,4207.0,4206.9,15.6792]
[1759216366077,0.001,4207.0,4206.9,18.05624723]
[1759216367507,0.001,4207.0,4206.9,20.81324723]
[1759216368203,0.001,4207.0,4206.9,18.4362]
[1759216368412,0.001,4207.0,4206.9,18.049]
[1759216369297,0.001,4207.0,4206.7,2.53]
[1759216369298,0.001,4207.0,4206.7,5.287]
[1759216369505,0.001,4207.0,4206.8,0.792]
[1759216369914,0.001,4207.0,4206.9,0.3872]
[1759216370600,0.001,4207.0,4206.8,16.1763417]
[1759216370802,0.001,4207.0,4206.9,0.3872]
[1759216371308,0.001,4207.0,4206.8,1.6763417]
[1759216371480,0.001,4207.0,4206.9,14.5]
[1759216372199,0.001,4207.0,4206.9,15.292]
[1759216372509,0.6993,4207.0,4206.9,18.048]
[1759216373010,0.2503,4207.0,4206.9,18.048]
[1759216373983,0.001,4207.0,4206.9,18.048]
[1759216375174,0.001,4207.0,4206.9,18.4352]
[1759216376012,0.001,4207.0,4206.9,18.048]
[1759216378516,0.001,4207.0,4206.9,18.4352]
[1759216378711,0.001,4207.0,4206.9,18.048]
[1759216380325,0.001,4207.0,4206.9,15.292]
[1759216380515,0.6993,4207.0,4206.9,18.047]
[1759216380827,0.2503,4207.0,4206.9,18.047]
[1759216381398,0.001,4207.0,4206.9,18.047]
[1759216382128,0.2503,4207.0,4206.9,18.047]
[1759216382429,0.6993,4207.0,4206.9,18.047]
[1759216382729,3.07629072,4207.0,4206.9,15.292]
[1759216383034,3.07629072,4207.0,4206.9,18.046]
[1759216383528,2.37704723,4206.9,4205.8,0.38720001]
[1759216383694,0.2493,4206.9,4205.8,1e-08]
[1759216384024,0.2493,4206.9,4205.9,3.1412]
[1759216384212,0.71603224,4207.0,4205.9,2.754]
[1759216384213,0.001,4207.0,4205.9,2.754]
[1759216384418,0.001,4207.0,4206.3,2.37734324]
[1759216384726,0.001,4207.0,4206.5,0.792]
[1759216384929,0.001,4207.0,4206.7,0.792]
[1759216385226,0.001,4207.0,4206.9,0.792]
[1759216385420,0.001,4207.0,4206.9,3.546]
[1759216385620,0.001,4207.0,4206.9,21.20356723]
[1759216386417,0.001,4207.0,4206.9,18.43932]
[1759216387235,0.001,4207.0,4206.9,20.81636723]
[1759216387531,0.001,4207.0,4206.9,18.43932]
[1759216387728,0.001,4207.0,4206.9,20.81636723]
[1759216387932,0.001,4207.0,4206.9,21.20356723]
[1759216388105,0.001,4207.0,4206.9,18.43932]
[1759216388636,0.001,4207.0,4206.9,20.81636723]
[1759216391537,0.001,4207.0,4206.9,18.43932]
[1759216391831,0.2433,4207.0,4206.9,18.045]
[1759216392036,0.7066,4207.0,4206.9,18.045]
[1759216392939,0.2433,4207.0,4206.9,18.045]
[1759216393239,0.001,4207.0,4206.9,18.045]
[1759216394222,0.7066,4207.0,4206.9,3.545]
[1759216394408,0.2433,4207.0,4206.9,3.545]
[1759216394609,0.7066,4207.0,4206.9,3.545]
[1759216394826,0.7066,4207.0,4206.9,18.045]
[1759216397339,3.08359072,4207.0,4206.9,2.753]
[1759216397540,3.62963833,4207.0,4206.9,2.753]
[1759216397839,1.25264761,4207.0,4206.9,2.753]
[1759216398027,3.63173833,4207.0,4206.9,2.753]
[1759216399231,0.77334761,4207.0,4206.8,2.752]
[1759216399745,3.15034602,4207.0,4206.8,2.752]
[1759216400039,0.001,4207.0,4206.9,0.792]
[1759216400239,2.37799072,4207.0,4206.9,0.792]
[1759216400424,0.6927,4207.0,4206.9,0.792]
[1759216401357,0.001,4207.0,4206.9,3.1928177]
[1759216401518,0.001,4207.0,4206.9,3.5800177]
[1759216401718,0.001,4207.0,4206.9,18.95092878]
[1759216401911,0.001,4207.0,4206.9,18.92715831]
[1759216403044,0.001,4207.0,4206.9,21.92715831]
[1759216403822,0.001,4207.5,4206.9,21.92715831]
[1759216403823,0.001,4207.5,4207.4,3.16876474]
[1759216404026,0.001,4207.5,4207.4,8.94353238]
[1759216404229,0.001,4207.5,4207.4,10.23846003]
[1759216404452,0.001,4207.5,4207.4,24.73846003]
[1759216405930,0.001,4207.5,4207.4,25.21962076]
[1759216408158,0.011,4207.5,4207.4,25.21962076]
[1759216409468,0.011,4207.5,4207.4,27.74962076]
[1759216416340,0.011,4207.5,4207.4,27.36242076]
[1759216416545,0.011,4207.5,4207.4,27.74962076]
[1759216417473,0.011,4207.5,4207.4,27.36242076]
[1759216422859,0.011,4207.5,4207.4,27.74962076]
[1759216423584,0.011,4207.5,4207.4,27.36242076]
[1759216427292,0.011,4207.5,4207.4,24.61142076]
[1759216427489,0.6698,4207.5,4207.4,27.35842076]
[1759216427786,0.6698,4207.5,4207.4,20.81942076]
[1759216427955,0.6698,4207.5,4207.4,16.87676474]
[1759216428360,0.6698,4207.5,4207.4,19.62376474]
[1759216428663,0.6698,4207.5,4207.4,17.247]
[1759216429187,0.6698,4207.5,4207.4,18.039]
[1759216430570,0.6698,4207.5,4207.4,15.292]
[1759216430770,0.6698,4207.5,4207.4,18.038]
[1759216438502,0.6698,4207.5,4207.4,15.292]
[1759216438707,0.6698,4207.5,4207.4,18.038]
[1759216439578,0.6698,4207.5,4207.4,18.037]
[1759216440228,0.6698,4207.5,4207.4,3.537]
[1759216440505,0.6698,4207.5,4207.4,3.16876474]
[1759216440506,0.011,4207.5,4207.4,3.16876474]
[1759216440803,0.2385,4207.5,4207.4,20.41376474]
[1759216441004,0.2385,4207.5,4207.4,18.037]
[1759216441208,0.6698,4207.5,4207.4,18.037]
[1759216441708,0.6698,4207.5,4207.4,15.292]
[1759216442013,0.6698,4207.5,4207.4,17.245]
[1759216442708,0.6698,4207.5,4207.4,18.037]
[1759216445619,0.6698,4207.5,4207.0,0.002]
[1759216445620,0.97444638,4207.5,4207.0,0.002]
[1759216445798,3.04651911,4207.5,4207.2,0.792]
[1759216445999,0.6588,4207.4,4207.3,2.745]
[1759216446194,0.6588,4207.4,4207.3,17.245]
[1759216446700,0.6588,4207.4,4207.3,2.745]
[1759216447529,3.34021557,4207.4,4207.3,2.745]
[1759216447829,2.37693423,4207.1,4207.0,0.002]
[1759216448127,2.37693423,4207.1,4207.0,2.747]
[1759216448300,3.03573423,4207.1,4207.0,2.747]
[1759216448495,4.17029189,4207.1,4207.0,0.002]
[1759216450125,1.79335766,4207.1,4207.0,0.002]
[1759216450629,4.17029189,4207.1,4207.0,0.002]
[1759216452413,7.17029189,4207.1,4207.0,0.002]
[1759216454235,9.91429189,4207.1,4207.0,0.002]
[1759216461863,10.4255519,4207.1,4207.0,0.002]
[1759216462821,10.5209134,4207.1,4207.0,0.002]
[1759216467237,2.37721675,4206.6,4206.5,0.002]
[1759216467436,13.74858268,4206.6,4206.5,0.002]
[1759216467642,14.42878268,4206.6,4206.5,0.002]
[1759216467851,14.52415237,4206.6,4206.5,0.002]
[1759216469131,15.03548227,4206.6,4206.5,0.002]
[1759216469468,16.2654145,4206.6,4206.5,0.002]
[1759216470466,16.77664515,4206.6,4206.5,0.002]
[1759216480281,13.35344515,4206.6,4206.5,0.002]
[1759216480581,16.09544515,4206.6,4206.5,0.002]
[1759216481967,16.33184515,4206.6,4206.5,0.002]
[1759216482271,16.09544515,4206.6,4206.5,0.002]
[1759216482828,16.33184515,4206.6,4206.5,0.002]
[1759216483166,16.09544515,4206.6,4206.5,0.002]
[1759216486077,16.33184515,4206.6,4206.5,0.002]
[1759216486477,16.09544515,4206.6,4206.5,0.002]
[1759216486787,16.79634515,4206.6,4206.5,0.002]
[1759216487196,17.12176447,4206.6,4206.5,0.002]
[1759216488586,16.79634515,4206.6,4206.5,0.002]
[1759216490383,15.78242462,4206.6,4206.5,0.002]
[1759216499322,2.37744282,4206.2,4206.1,0.002]
[1759216499477,6.40415439,4206.2,4206.1,0.002]
[1759216499685,9.40415439,4206.2,4206.1,0.002]
[1759216500507,9.49952703,4206.2,4206.1,0.002]
[1759216500712,14.11397243,4206.2,4206.1,0.002]
[1759216501309,14.81487243,4206.2,4206.1,0.002]
[1759216501622,5.37749934,4206.1,4206.0,1e-08]
[1759216501796,8.30885387,4206.1,4206.0,1e-08]
[1759216502399,8.40422947,4206.1,4206.0,1e-08]
[1759216503799,7.93972947,4206.1,4206.0,1e-08]
[1759216506400,7.70332947,4206.1,4206.0,1e-08]
[1759216508814,7.93972947,4206.1,4206.0,1e-08]
[1759216509036,8.40422947,4206.1,4206.0,1e-08]
[1759216511401,2.3776124,4205.9,4205.8,1e-08]
[1759216511700,2.37783854,4205.5,4205.4,0.002]
[1759216511908,12.73128394,4205.5,4205.4,0.002]
[1759216512104,13.24251459,4205.5,4205.4,0.002]
[1759216512698,13.33790337,4205.5,4205.4,0.002]
[1759216514205,8.72345797,4205.5,4205.4,0.002]
[1759216514543,10.29502448,4205.5,4205.4,0.002]
[1759216515237,10.97882448,4205.5,4205.4,0.002]
[1759216517533,10.53322448,4205.5,4205.4,0.002]
[1759216517735,10.29502448,4205.5,4205.4,0.002]
[1759216517927,10.29982448,4205.5,4205.4,0.002]
[1759216518114,10.29882448,4205.5,4205.4,0.002]
[1759216526145,10.54682448,4205.5,4205.4,0.002]
[1759216528762,10.29882448,4205.5,4205.4,0.002]
[1759216531529,10.54682448,4205.5,4205.4,0.002]
[1759216536058,10.54682448,4205.5,4205.3,0.002]
[1759216536248,7.6144454,4205.2,4205.1,0.002]
[1759216536561,10.3504454,4205.2,4205.1,0.002]
[1759216536758,10.95707143,4205.2,4205.1,0.002]
[1759216536963,11.20507143,4205.2,4205.1,0.002]
[1759216537465,13.58307961,4205.2,4205.1,0.002]
[1759216537662,15.2040392,4205.2,4205.1,0.002]
[1759216541866,15.2030392,4205.2,4205.1,0.3892]
[1759216542071,13.33407961,4205.2,4205.1,0.3892]
[1759216543495,13.33407961,4205.2,4205.1,0.002]
[1759216544393,10.59907961,4205.2,4205.1,0.002]
[1759216544592,13.33407961,4205.2,4205.1,0.002]
[1759216549295,14.04737961,4205.2,4205.1,0.002]
[1759216549466,16.15443436,4205.2,4205.1,0.002]
[1759216550473,15.44113436,4205.2,4205.1,0.002]
[1759216551091,15.44013436,4205.2,4205.1,0.002]
[1759216552387,16.1672979,4205.2,4205.1,0.002]
[1759216554000,16.4070979,4205.2,4205.1,0.002]
[1759216555995,16.1672979,4205.2,4205.1,0.002]
[1759216557700,16.4070979,4205.2,4205.1,0.002]
[1759216559319,16.1672979,4205.2,4205.1,0.002]
[1759216560815,16.4070979,4205.2,4205.1,0.002]
[1759216565938,0.60662603,4205.2,4205.1,0.002]
[1759216566115,0.001,4205.3,4205.1,0.3892]
[1759216566324,2.37895275,4205.3,4205.1,0.002]
[1759216566494,3.0,4205.2,4205.1,0.002]
[1759216567139,3.0,4205.2,4205.1,0.3892]
[1759216567497,5.37800818,4205.2,4205.1,0.3892]
[1759216568703,5.37800818,4205.2,4205.1,0.002]
[1759216569635,6.09335414,4205.2,4205.1,0.3892]
[1759216570624,6.09335414,4205.2,4205.1,0.002]
[1759216574440,6.09335414,4205.2,4205.1,0.3892]
[1759216574743,6.09335414,4205.2,4205.1,0.002]
[1759216582333,7.91859188,4205.2,4205.1,0.002]
[1759216584443,8.43193678,4205.2,4205.1,0.002]
[1759216586151,7.91859188,4205.2,4205.1,0.002]
[1759216587151,8.43196913,4205.2,4205.1,0.002]
[1759216594481,6.09335414,4205.2,4205.1,0.002]
[1759216594768,8.82235414,4205.2,4205.1,0.002]
[1759216595682,10.01637249,4205.2,4205.1,0.002]
[1759216599288,10.01537249,4205.2,4205.1,0.002]
[1759216608599,6.60687249,4205.2,4205.1,0.002]
[1759216608897,9.33387249,4205.2,4205.1,0.002]
[1759216609670,10.53016206,4205.2,4205.1,0.002]
[1759216609903,10.77446206,4205.2,4205.1,0.002]
[1759216610993,11.21396206,4205.2,4205.1,0.002]
[1759216612899,8.48696206,4205.2,4205.1,0.002]
[1759216613101,11.21396206,4205.2,4205.1,0.002]
[1759216614376,15.82988828,4205.2,4205.1,0.002]
[1759216619380,15.39038828,4205.2,4205.1,0.002]
[1759216620774,7.80316206,4205.2,4205.1,0.002]
[1759216621106,9.33373809,4205.2,4205.1,0.002]
[1759216624202,6.60773809,4205.2,4205.1,0.002]
[1759216624396,8.81935414,4205.2,4205.1,0.002]
[1759216624601,9.33373809,4205.2,4205.1,0.002]
[1759216627013,0.71534596,4205.2,4205.1,0.3892]
[1759216627186,8.81835414,4205.2,4205.1,0.3892]
[1759216627386,3.71534596,4205.2,4205.1,0.3892]
[1759216627787,6.09335414,4205.2,4205.1,0.3892]
[1759216629317,3.71534596,4205.2,4205.1,0.3892]
[1759216629815,6.09335414,4205.2,4205.1,0.3892]
[1759216630705,6.09335414,4205.2,4205.1,0.002]
[1759216632087,3.71534596,4205.2,4205.1,0.002]
[1759216632411,6.09335414,4205.2,4205.1,0.3892]
[1759216632816,6.09335414,4205.2,4205.1,0.002]
[1759216636448,6.75515414,4205.2,4205.1,0.002]
[1759216640626,6.09335414,4205.2,4205.1,0.002]
[1759216640818,3.71534596,4205.2,4205.1,0.002]
[1759216641020,6.09335414,4205.2,4205.1,0.3892]
[1759216641349,6.09335414,4205.2,4205.1,0.002]
[1759216641721,6.09335414,4205.2,4205.1,0.3892]
[1759216642119,3.71534596,4205.2,4205.1,0.002]
[1759216642345,3.71534596,4205.2,4205.1,0.3892]
[1759216642548,6.09335414,4205.2,4205.1,0.3892]
[1759216642930,3.71534596,4205.2,4205.1,0.3892]
[1759216643320,6.09335414,4205.2,4205.1,0.3892]
[1759216643743,3.71534596,4205.2,4205.1,0.002]
[1759216644550,6.09335414,4205.2,4205.1,0.002]
[1759216644755,3.71534596,4205.2,4205.1,0.002]
[1759216644950,3.71534596,4205.2,4205.1,0.3892]
[1759216645251,0.71534596,4205.2,4205.1,1.1812]
[1759216645455,0.001,4205.3,4205.2,3.17000818]
[1759216645648,0.001,4205.3,4205.2,3.55720818]
[1759216645842,0.001,4205.3,4205.2,6.28020818]
[1759216647454,0.001,4205.3,4205.2,20.78020818]
[1759216647656,0.001,4205.3,4205.2,18.4022]
[1759216649172,0.001,4205.3,4205.2,18.015]
[1759216652555,0.001,4205.3,4205.2,20.78020818]
[1759216652757,0.001,4205.3,4205.2,18.4022]
[1759216652923,0.001,4205.3,4205.2,18.015]
[1759216654056,0.001,4205.3,4205.2,20.78020818]
[1759216654256,0.001,4205.3,4205.2,18.4022]
[1759216654655,0.001,4205.3,4205.2,18.015]
[1759216656826,0.001,4205.3,4205.2,15.292]
[1759216657026,0.001,4205.3,4205.2,18.014]
[1759216662570,0.6908,4205.3,4205.2,14.5]
[1759216662870,0.78616559,4205.3,4205.2,14.5]
[1759216665590,2.37800818,4205.2,4205.1,0.002]
[1759216665746,5.69499437,4205.2,4205.1,0.002]
[1759216666071,6.38479437,4205.2,4205.1,0.002]
[1759216666251,9.8211011,4205.2,4205.1,0.002]
[1759216672493,9.50411491,4205.2,4205.1,0.002]
[1759216674318,6.78311491,4205.2,4205.1,0.002]
[1759216674497,9.50411491,4205.2,4205.1,0.002]
[1759216682882,10.01726415,4205.2,4205.1,0.002]
[1759216687020,10.01702038,4205.2,4205.1,0.002]
[1759216688414,11.82080447,4205.2,4205.1,0.002]
[1759216694417,11.82118212,4205.2,4205.1,0.002]
[1759216695590,5.37806473,4205.1,4205.0,1e-08]
[1759216695811,5.89134785,4205.1,4205.0,1e-08]
[1759216696019,11.01434343,4204.8,4204.7,1e-08]
[1759216696195,2.37834752,4204.6,4204.5,1e-08]
[1759216696396,8.09734752,4204.6,4204.5,1e-08]
[1759216696616,9.29353064,4204.6,4204.5,1e-08]
[1759216696934,9.68073064,4204.6,4204.5,1e-08]
[1759216697225,11.4502437,4204.6,4204.5,1e-08]
[1759216700822,8.7312437,4204.6,4204.5,1e-08]
[1759216701026,11.4502437,4204.6,4204.5,1e-08]
[1759216707430,8.7312437,4204.6,4204.5,1e-08]
[1759216707602,11.4502437,4204.6,4204.5,1e-08]
[1759216709044,11.4492437,4204.6,4204.5,1e-08]
[1759216714926,2.37885672,4203.7,4203.6,0.29320001]
[1759216715128,5.09685672,4203.7,4203.6,0.29320001]
[1759216715327,8.09685672,4203.7,4203.6,0.29320001]
[1759216715528,8.81245351,4203.7,4203.6,0.29320001]
[1759216716758,8.81245351,4203.7,4203.6,0.29520001]
[1759216719419,3.71559679,4203.7,4203.6,0.2952]
[1759216719622,2.717,4204.2,4203.7,0.792]
[1759216719924,3.0,4204.1,4203.8,0.63981677]
[1759216720251,5.37864294,4204.1,4203.9,0.2932]
[1759216720448,5.37864294,4204.1,4203.6,0.002]
[1759216720449,2.37868979,4204.0,4203.6,0.002]
[1759216721251,2.37868979,4204.0,4203.7,0.2932]
[1759216723258,3.0,4204.1,4203.6,0.002]
[1759216723486,5.37863313,4204.1,4203.7,0.792]
[1759216723755,2.37880013,4203.8,4203.7,0.792]
[1759216724522,2.37880013,4203.8,4203.7,0.2932]
[1759216725333,2.37875621,4203.9,4203.7,0.2932]
[1759216727347,2.37875621,4203.9,4203.8,14.5]
[1759216727555,2.37875621,4203.9,4203.8,15.97952]
[1759216730652,2.37875621,4203.9,4203.8,1.47952]
[1759216730864,2.37875694,4203.9,4203.6,0.794]
[1759216731164,2.37873211,4204.0,4203.7,14.7932]
[1759216731521,2.37873211,4204.0,4203.7,14.5]
[1759216731743,5.717,4204.1,4203.7,14.5]
[1759216732061,2.37880013,4203.8,4203.7,14.5]
[1759216732258,2.37880013,4203.8,4203.7,15.9502]
[1759216734238,2.37880013,4203.8,4203.7,1.4502]
[1759216734441,2.37880013,4203.8,4203.6,0.002]
[1759216734972,0.001,4203.9,4203.6,14.502]
[1759216735131,2.37880013,4203.8,4203.6,14.502]
[1759216736269,3.001,4203.9,4203.6,14.502]
[1759216736270,0.001,4203.9,4203.6,14.502]
[1759216736456,2.37880013,4203.8,4203.6,14.502]
[1759216736660,2.37880013,4203.8,4203.6,16.06072]
[1759216737166,2.37975252,4203.9,4203.6,16.06072]
[1759216737457,2.3788072,4203.8,4203.6,16.06072]
[1759216739564,2.37976082,4203.9,4203.6,16.06072]
[1759216740369,0.001,4203.9,4203.6,16.06072]
[1759216740547,0.001,4203.9,4203.7,0.24368637]
[1759216740935,2.37979456,4203.9,4203.7,0.24368637]
[1759216741141,2.37979456,4203.9,4203.8,14.5]
[1759216741640,0.001,4203.9,4203.6,0.002]
[1759216741890,2.37885672,4203.7,4203.6,0.002]
[1759216742141,3.07075672,4203.7,4203.6,0.002]
[1759216744079,5.78575672,4203.7,4203.6,0.002]
[1759216745857,8.78575672,4203.7,4203.6,0.002]
[1759216746053,9.985914,4203.7,4203.6,0.002]
[1759216748650,10.70153298,4203.7,4203.6,0.002]
[1759216757288,8.8094757,4203.7,4203.6,0.002]
[1759216763889,9.4824757,4203.7,4203.6,0.002]
[1759216768998,9.4834757,4203.7,4203.6,0.002]
[1759216771099,8.8104757,4203.7,4203.6,0.002]
[1759216772798,6.0954757,4203.7,4203.6,0.002]
[1759216772998,8.8094757,4203.7,4203.6,0.002]
[1759216773800,6.43061898,4203.7,4203.6,0.002]
[1759216773994,8.8094757,4203.7,4203.6,0.002]
[1759216776482,6.0954757,4203.7,4203.6,0.002]
[1759216776695,8.8084757,4203.7,4203.6,0.002]
[1759216779702,9.0569757,4203.7,4203.6,0.002]
[1759216783323,9.4927757,4203.7,4203.6,0.002]
[1759216783510,9.8904485,4203.7,4203.6,0.002]
[1759216783910,10.40489197,4203.7,4203.6,0.002]
[1759216784496,7.00759197,4203.7,4203.6,0.002]
[1759216784705,8.8084757,4203.7,4203.6,0.002]
[1759216788640,9.0569757,4203.7,4203.6,0.002]
[1759216788934,9.0559757,4203.7,4203.6,0.002]
[1759216790338,6.0954757,4203.7,4203.6,0.002]
[1759216790631,8.8074757,4203.7,4203.6,0.002]
[1759216791006,9.4917757,4203.7,4203.6,0.002]
[1759216791419,2.37913501,4203.3,4202.9,0.2932]
[1759216791624,5.37915794,4203.2,4202.9,0.2932]
[1759216792338,5.37915794,4203.2,4203.0,14.5]
[1759216793436,5.37915794,4203.2,4203.0,15.97932]
[1759216795437,2.3791963,4203.1,4203.0,15.97932]
[1759216795732,5.3791532,4203.2,4203.0,15.97932]
[1759216795936,2.3791963,4203.1,4203.0,15.97932]
[1759216796505,2.3791963,4203.1,4203.0,14.5]
[1759216797038,5.3791518,4203.2,4203.0,14.5]
[1759216797419,2.3791963,4203.1,4203.0,14.5]
[1759216799241,2.6276963,4203.1,4203.0,14.5]
[1759216799534,3.09483577,4203.1,4203.0,14.5]
[1759216799906,0.71563947,4203.1,4203.0,14.5]
[1759216800246,3.42763947,4203.1,4203.0,14.5]
[1759216800931,5.80683577,4203.1,4203.0,14.5]
[1759216801132,6.49113577,4203.1,4203.0,14.5]
[1759216801324,6.49113577,4203.1,4202.4,0.792]
[1759216801521,2.37948099,4202.6,4200.8,2.53]
[1759216801727,2.37948099,4202.6,4201.8,2.37987678]
[1759216801975,0.2485,4202.5,4202.0,0.792]
[1759216802114,0.96422483,4202.5,4202.0,0.792]
[1759216802553,0.6843,4202.5,4202.0,0.792]
[1759216802715,0.71573167,4202.4,4202.1,14.5]
[1759216803543,0.96423167,4202.4,4202.1,14.5]
[1759216803916,0.2485,4202.4,4202.1,14.5]
[1759216804116,0.71574362,4202.3,4202.1,14.5]
[1759216806416,1.15154362,4202.3,4202.1,14.5]
[1759216806612,0.6843,4202.2,4202.1,14.5]
[1759216807018,0.6843,4202.2,4202.1,14.502]
[1759216807334,0.96426582,4202.2,4202.1,14.502]
[1759216807944,0.71576582,4202.2,4202.1,14.502]
[1759216809128,0.71576582,4202.2,4202.1,14.7952]
[1759216809476,0.71576582,4202.2,4202.1,17.06672]
[1759216809636,0.71576582,4202.2,4202.1,14.502]
[1759216809840,0.71576582,4202.2,4202.1,0.002]
[1759216809841,6.49937168,4202.2,4202.1,0.002]
[1759216811032,4.11966582,4202.2,4202.1,0.002]
[1759216811353,6.49937168,4202.2,4202.1,0.002]
[1759216811553,9.49937168,4202.2,4202.1,0.002]
[1759216811847,11.22164631,4202.2,4202.1,0.002]
[1759216814174,8.51064631,4202.2,4202.1,0.002]
[1759216814343,11.22164631,4202.2,4202.1,0.002]
[1759216821973,8.51064631,4202.2,4202.1,0.002]
[1759216822146,7.81774631,4202.2,4202.1,0.002]
[1759216822474,8.80647168,4202.2,4202.1,0.002]
[1759216822661,9.47447168,4202.2,4202.1,0.002]
[1759216826577,14.81823148,4202.2,4202.1,0.002]
[1759216828385,15.3298608,4202.2,4202.1,0.002]
[1759216830181,9.986101,4202.2,4202.1,0.002]
[1759216830493,15.3298608,4202.2,4202.1,0.002]
[1759216830688,5.37976249,4202.1,4201.6,1e-08]
[1759216830852,7.72374885,4201.7,4201.6,1e-08]
[1759216831058,13.43474885,4201.7,4201.6,1e-08]
[1759216831279,15.33047202,4201.7,4201.6,1e-08]
[1759216831587,17.10151246,4201.7,4201.6,1e-08]
[1759216837087,17.89351246,4201.7,4201.6,1e-08]
[1759216837290,18.51159577,4201.7,4201.6,1e-08]
[1759216839066,14.71593178,4201.7,4201.6,1e-08]
[1759216839268,17.10151246,4201.7,4201.6,1e-08]
[1759216840086,17.89351246,4201.7,4201.6,1e-08]
[1759216840304,2.38123586,4199.5,4198.2,3.17392998]
[1759216840607,5.09229256,4199.4,4198.4,0.792]
[1759216840901,2.38141721,4199.2,4198.4,0.792]
[1759216841196,2.38141721,4199.2,4198.5,0.2932]
[1759216841497,0.71626824,4199.2,4198.6,14.5]
[1759216841795,0.71626824,4199.2,4198.7,1.0852]
[1759216841991,0.71626824,4199.2,4198.9,0.792]
[1759216842185,0.71626824,4199.2,4198.5,0.792]
[1759216842375,3.09768281,4199.2,4199.0,0.2932]
[1759216842775,2.38146269,4199.1,4199.0,1.0852]
[1759216843389,2.38146269,4199.1,4199.0,15.5852]
[1759216843583,2.38146269,4199.1,4199.0,17.14372]
[1759216843782,3.0976852,4199.2,4199.0,17.14372]
[1759216844011,3.0976852,4199.2,4199.1,0.2932]
[1759216845312,3.0976852,4199.2,4199.0,16.05852]
[1759216845509,2.38146269,4199.1,4199.0,16.05852]
[1759216845708,2.38146269,4199.1,4198.1,2.3819775]
[1759216845709,2.38155413,4199.0,4198.2,0.792]
[1759216845918,5.80878681,4199.1,4198.2,3.17394605]
[1759216846112,5.80878681,4199.1,4198.3,0.2932]
[1759216846312,2.711,4199.1,4198.5,0.792]
[1759216846512,0.71631441,4199.0,4198.6,0.2932]
[1759216846808,3.09785236,4199.0,4198.7,2.64372]
[1759216847114,3.09785236,4199.0,4198.8,14.7932]
[1759216847310,2.3815194,4199.0,4198.9,0.2932]
[1759216848016,3.09784921,4199.0,4198.9,0.2932]
[1759216849707,0.71632981,4199.0,4198.9,0.2932]
[1759216850217,3.09784921,4199.0,4198.9,0.2932]
[1759216850417,0.71632981,4199.0,4198.9,0.2932]
[1759216850616,0.71632981,4199.0,4198.9,14.7932]
[1759216850788,0.71632981,4199.0,4198.9,16.27252]
[1759216852987,0.71632981,4199.0,4198.9,17.06452]
[1759216853192,8.09235594,4199.3,4199.0,0.792]
[1759216853392,3.0,4199.2,4199.1,0.2932]
[1759216853621,3.0,4199.2,4199.0,0.792]
[1759216853798,5.38140598,4199.2,4199.1,0.32308637]
[1759216854112,5.38140598,4199.2,4199.1,0.61628637]